[Event "SELL Games"]
[Site "Tartu, Estonia"]
[Date "2023.05.19"]
[Round "4.5"]
[White "Simkunaite, Gabija"]
[Black "Sibajeva, Marija"]
[Result "1-0"]
[TimeControl "15min + 10sec per move each"]
[WhiteTitle "WFM"]
[BlackTitle "WFM"]
[WhiteFideId "12808253"]
[BlackFideId "12807583"]
[WhiteElo "1964"]
[BlackElo "1953"]

1. e4 {[%clk 00:15:17]} {[%emt 00:00:03]} d5 {[%clk 00:15:13]} {[%emt
00:00:08]} 2. exd5 {[%clk 00:15:23]} {[%emt 00:00:04]} Qxd5 {[%clk 00:15:22]} 3.
Nc3 {[%clk 00:15:27]} {[%emt 00:00:06]} Qa5 {[%clk 00:15:30]} {[%emt 00:00:01]}
4. Bc4 {[%clk 00:15:34]} {[%emt 00:00:03]} Nf6 {[%clk 00:15:37]} {[%emt
00:00:04]} 5. d3 {[%clk 00:15:42]} {[%emt 00:00:02]} c6 {[%clk 00:15:45]}
{[%emt 00:00:02]} 6. Bd2 {[%clk 00:15:50]} {[%emt 00:00:02]} Qc7 {[%clk
00:15:54]} 7. Qe2 {[%clk 00:15:56]} {[%emt 00:00:05]} e6 {[%clk 00:15:56]}
{[%emt 00:00:07]} 8. Nf3 {[%clk 00:15:06]} {[%emt 00:01:00]} Bd6 {[%clk
00:15:25]} {[%emt 00:00:40]} 9. O-O-O {[%clk 00:14:32]} {[%emt 00:00:46]} O-O
{[%clk 00:15:18]} {[%emt 00:00:16]} 10. h4 {[%clk 00:14:31]} {[%emt 00:00:11]}
b5 {[%clk 00:15:08]} {[%emt 00:00:20]} 11. Bb3 {[%clk 00:14:39]} {[%emt
00:00:01]} a5 {[%clk 00:14:52]} {[%emt 00:00:27]} 12. a4 {[%clk 00:14:45]}
{[%emt 00:00:04]} b4 {[%clk 00:14:44]} {[%emt 00:00:17]} 13. Ne4 {[%clk
00:14:47]} {[%emt 00:00:09]} Nxe4 {[%clk 00:14:26]} {[%emt 00:00:28]} 14. Qxe4
{[%clk 00:14:45]} {[%emt 00:00:12]} Nd7 {[%clk 00:14:23]} {[%emt 00:00:13]} 15.
h5 {[%clk 00:14:04]} {[%emt 00:00:52]} Nc5 {[%clk 00:14:03]} {[%emt 00:00:30]}
16. Qe3 {[%clk 00:13:41]} {[%emt 00:00:33]} Nxb3+ {[%clk 00:13:07]} {[%emt
00:01:06]} 17. cxb3 {[%clk 00:13:49]} {[%emt 00:00:01]} e5 {[%clk 00:12:31]}
{[%emt 00:00:47]} 18. Kb1 {[%clk 00:13:23]} {[%emt 00:00:37]} f6 {[%clk
00:11:28]} {[%emt 00:01:12]} 19. Rdg1 {[%clk 00:11:51]} {[%emt 00:01:42]} Be6
{[%clk 00:11:13]} {[%emt 00:00:24]} 20. d4 {[%clk 00:10:53]} {[%emt 00:01:09]}
e4 {[%clk 00:10:10]} {[%emt 00:01:13]} 21. Nh4 {[%clk 00:10:02]} {[%emt
00:01:01]} f5 {[%clk 00:08:45]} {[%emt 00:01:35]} 22. Ka1 {[%clk 00:08:56]}
{[%emt 00:01:16]} Bd5 {[%clk 00:07:18]} {[%emt 00:01:37]} 23. Qh3 {[%clk
00:08:39]} {[%emt 00:00:27]} Qf7 {[%clk 00:06:36]} {[%emt 00:00:52]} 24. f3
{[%clk 00:06:34]} {[%emt 00:02:15]} Bxb3 {[%clk 00:05:15]} {[%emt 00:01:32]} 25.
fxe4 {[%clk 00:06:19]} {[%emt 00:00:25]} fxe4 {[%clk 00:03:57]} {[%emt
00:01:28]} 26. g4 {[%clk 00:05:13]} {[%emt 00:01:15]} Bxa4 {[%clk 00:03:06]}
{[%emt 00:01:02]} 27. g5 {[%clk 00:04:53]} {[%emt 00:00:30]} Qb3 {[%clk
00:02:40]} {[%emt 00:00:36]} 28. Qg4 {[%clk 00:04:17]} {[%emt 00:00:46]} e3
{[%clk 00:01:48]} {[%emt 00:01:02]} 29. Rh3 {[%clk 00:03:45]} {[%emt 00:00:42]}
Bb5 {[%clk 00:01:22]} {[%emt 00:00:35]} 30. Rxe3 {[%clk 00:03:13]} {[%emt
00:00:41]} Bd3 {[%clk 00:00:38]} {[%emt 00:00:54]} 31. Rxd3 {[%clk 00:03:20]}
{[%emt 00:00:05]} Qxd3 {[%clk 00:00:45]} {[%emt 00:00:02]} 32. Qe6+ {[%clk
00:03:29]} {[%emt 00:00:02]} Kh8 {[%clk 00:00:34]} {[%emt 00:00:21]} 33. Qxd6
{[%clk 00:02:32]} {[%emt 00:01:06]} Qxd2 {[%clk 00:00:33]} {[%emt 00:00:11]} 34.
Ng6+ {[%clk 00:02:22]} {[%emt 00:00:20]} hxg6 {[%clk 00:00:29]} {[%emt
00:00:14]} 35. hxg6 {[%clk 00:02:31]} 1-0

[Event "SELL Games"]
[Site "Tartu, Estonia"]
[Date "2023.05.19"]
[Round "4.6"]
[White "Galdikaite, Greta"]
[Black "Bekasovs, Rihards"]
[Result "0-1"]
[TimeControl "15min + 10sec per move each"]
[WhiteFideId "12819956"]
[BlackFideId "11606029"]
[WhiteElo "1195"]
[BlackElo "2107"]

1. e4 {[%clk 00:15:18]} c6 {[%clk 00:15:19]} {[%emt 00:00:02]} 2. d3 {[%clk
00:15:24]} {[%emt 00:00:04]} d5 {[%clk 00:15:19]} {[%emt 00:00:09]} 3. Nc3
{[%clk 00:15:29]} {[%emt 00:00:05]} g6 {[%clk 00:15:25]} {[%emt 00:00:05]} 4.
Nf3 {[%clk 00:15:30]} {[%emt 00:00:10]} Bg7 {[%clk 00:15:33]} {[%emt 00:00:02]}
5. Bf4 {[%clk 00:14:26]} {[%emt 00:01:14]} Bg4 {[%clk 00:14:34]} {[%emt
00:01:07]} 6. h3 {[%clk 00:14:19]} {[%emt 00:00:18]} Bxf3 {[%clk 00:14:38]}
{[%emt 00:00:05]} 7. Qxf3 {[%clk 00:14:26]} {[%emt 00:00:03]} e6 {[%clk
00:14:42]} {[%emt 00:00:06]} 8. Be2 {[%clk 00:13:59]} {[%emt 00:00:38]} Nd7
{[%clk 00:14:34]} {[%emt 00:00:18]} 9. O-O {[%clk 00:14:02]} {[%emt 00:00:07]}
a6 {[%clk 00:14:30]} {[%emt 00:00:13]} 10. Qe3 {[%clk 00:13:36]} {[%emt
00:00:35]} d4 {[%clk 00:14:28]} {[%emt 00:00:12]} 11. Qd2 {[%clk 00:13:20]}
{[%emt 00:00:27]} dxc3 {[%clk 00:14:34]} {[%emt 00:00:04]} 12. bxc3 {[%clk
00:13:28]} {[%emt 00:00:02]} Ne7 {[%clk 00:14:18]} {[%emt 00:00:26]} 13. d4
{[%clk 00:12:00]} {[%emt 00:01:39]} O-O {[%clk 00:14:07]} {[%emt 00:00:21]} 14.
Rab1 {[%clk 00:06:48]} {[%emt 00:05:22]} b5 {[%clk 00:13:57]} {[%emt 00:00:20]}
15. c4 {[%clk 00:06:37]} {[%emt 00:00:22]} e5 {[%clk 00:13:45]} {[%emt
00:00:21]} 16. Be3 {[%clk 00:06:25]} {[%emt 00:00:21]} exd4 {[%clk 00:13:41]}
{[%emt 00:00:15]} 17. Bxd4 {[%clk 00:06:33]} {[%emt 00:00:03]} Ne5 {[%clk
00:13:45]} {[%emt 00:00:05]} 18. cxb5 {[%clk 00:06:21]} {[%emt 00:00:23]} axb5
{[%clk 00:13:39]} {[%emt 00:00:16]} 19. c3 {[%clk 00:05:51]} {[%emt 00:00:40]}
Nc4 {[%clk 00:06:53]} {[%emt 00:06:55]} 20. Bxc4 {[%clk 00:02:22]} {[%emt
00:03:40]} bxc4 {[%clk 00:07:00]} {[%emt 00:00:03]} 21. e5 {[%clk 00:02:29]}
{[%emt 00:00:02]} Bxe5 {[%clk 00:07:00]} {[%emt 00:00:10]} 22. Rfe1 {[%clk
00:02:13]} {[%emt 00:00:26]} Bxd4 {[%clk 00:07:03]} {[%emt 00:00:07]} 23. cxd4
{[%clk 00:01:50]} {[%emt 00:00:33]} Nd5 {[%clk 00:07:10]} {[%emt 00:00:03]} 24.
Rbc1 {[%clk 00:01:18]} {[%emt 00:00:42]} c3 {[%clk 00:07:18]} {[%emt 00:00:02]}
25. Qc2 {[%clk 00:01:19]} {[%emt 00:00:09]} Qd6 {[%clk 00:07:19]} {[%emt
00:00:08]} 26. Re4 {[%clk 00:01:08]} {[%emt 00:00:21]} Rfe8 {[%clk 00:07:13]}
{[%emt 00:00:16]} 27. Rxe8+ {[%clk 00:00:33]} {[%emt 00:00:46]} Rxe8 {[%clk
00:07:21]} {[%emt 00:00:01]} 28. a4 {[%clk 00:00:39]} {[%emt 00:00:04]} Qb4
{[%clk 00:07:21]} {[%emt 00:00:09]} 29. Rd1 {[%clk 00:00:27]} {[%emt 00:00:22]}
Qb2 {[%clk 00:07:21]} {[%emt 00:00:10]} 0-1

[Event "SELL Games"]
[Site "Tartu, Estonia"]
[Date "2023.05.19"]
[Round "4.7"]
[White "Mikelsons, Mikelis-Emils"]
[Black "Maciuityte, Greta"]
[Result "0-1"]
[TimeControl "15min + 10sec per move each"]
[WhiteFideId "11607475"]
[BlackFideId "12806765"]
[WhiteElo "1877"]
[BlackElo "1715"]

1. c4 {[%clk 00:15:19]} d5 {[%clk 00:15:02]} {[%emt 00:00:19]} 2. d4 {[%clk
00:15:20]} {[%emt 00:00:08]} Nf6 {[%clk 00:14:52]} {[%emt 00:00:20]} 3. cxd5
{[%clk 00:15:29]} {[%emt 00:00:02]} Nxd5 {[%clk 00:15:00]} {[%emt 00:00:02]} 4.
e4 {[%clk 00:15:38]} {[%emt 00:00:01]} Nb6 {[%clk 00:15:03]} {[%emt 00:00:07]}
5. Nc3 {[%clk 00:15:35]} {[%emt 00:00:12]} e6 {[%clk 00:15:07]} {[%emt
00:00:06]} 6. Nf3 {[%clk 00:15:40]} {[%emt 00:00:06]} Be7 {[%clk 00:14:56]}
{[%emt 00:00:20]} 7. Bd3 {[%clk 00:15:30]} {[%emt 00:00:21]} Nc6 {[%clk
00:14:51]} {[%emt 00:00:15]} 8. O-O {[%clk 00:15:26]} {[%emt 00:00:13]} O-O
{[%clk 00:14:46]} {[%emt 00:00:15]} 9. e5 {[%clk 00:15:34]} {[%emt 00:00:02]}
h6 {[%clk 00:13:58]} {[%emt 00:00:58]} 10. a3 {[%clk 00:15:02]} {[%emt
00:00:43]} f5 {[%clk 00:12:20]} {[%emt 00:01:48]} 11. exf6 {[%clk 00:14:48]}
{[%emt 00:00:24]} Bxf6 {[%clk 00:12:25]} {[%emt 00:00:04]} 12. Be3 {[%clk
00:13:40]} {[%emt 00:01:19]} Nd5 {[%clk 00:11:19]} {[%emt 00:01:16]} 13. Bc2
{[%clk 00:13:19]} {[%emt 00:00:31]} Nde7 {[%clk 00:10:51]} {[%emt 00:00:38]} 14.
Qd3 {[%clk 00:13:20]} {[%emt 00:00:09]} Nf5 {[%clk 00:10:44]} {[%emt 00:00:17]}
15. g4 {[%clk 00:13:17]} {[%emt 00:00:13]} Nfe7 {[%clk 00:10:10]} {[%emt
00:00:44]} 16. g5 {[%clk 00:07:24]} {[%emt 00:06:03]} hxg5 {[%clk 00:08:47]}
{[%emt 00:01:33]} 17. Qh7+ {[%clk 00:06:49]} {[%emt 00:00:45]} Kf7 {[%clk
00:08:55]} {[%emt 00:00:03]} 18. Qh5+ {[%clk 00:05:11]} {[%emt 00:01:47]} g6
{[%clk 00:08:02]} {[%emt 00:01:03]} 19. Qh7+ {[%clk 00:05:18]} {[%emt
00:00:03]} Ke8 {[%clk 00:07:58]} {[%emt 00:00:14]} 20. Nxg5 {[%clk 00:04:51]}
{[%emt 00:00:38]} Bxg5 {[%clk 00:05:34]} {[%emt 00:02:34]} 21. Bxg5 {[%clk
00:04:57]} {[%emt 00:00:03]} Qxd4 {[%clk 00:05:22]} {[%emt 00:00:23]} 22. Bxg6+
{[%clk 00:04:42]} {[%emt 00:00:25]} Nxg6 {[%clk 00:05:30]} {[%emt 00:00:02]} 23.
Qxg6+ {[%clk 00:04:48]} {[%emt 00:00:04]} Rf7 {[%clk 00:05:38]} {[%emt
00:00:02]} 24. Ne4 {[%clk 00:04:11]} {[%emt 00:00:46]} Qg7 {[%clk 00:03:57]}
{[%emt 00:01:52]} 25. Nf6+ {[%clk 00:04:11]} {[%emt 00:00:10]} Kf8 {[%clk
00:02:32]} {[%emt 00:01:34]} 26. Bh6 {[%clk 00:04:20]} {[%emt 00:00:02]} Ne5
{[%clk 00:01:48]} {[%emt 00:00:54]} 27. Bxg7+ {[%clk 00:02:17]} {[%emt
00:02:13]} Rxg7 {[%clk 00:01:54]} {[%emt 00:00:04]} 28. Qxg7+ {[%clk 00:02:19]}
{[%emt 00:00:08]} Kxg7 {[%clk 00:02:02]} {[%emt 00:00:02]} 29. Ne8+ {[%clk
00:02:26]} {[%emt 00:00:02]} Kf7 {[%clk 00:02:05]} {[%emt 00:00:08]} 30. f4
{[%clk 00:02:22]} {[%emt 00:00:14]} Nd3 {[%clk 00:01:13]} {[%emt 00:01:02]} 31.
Nxc7 {[%clk 00:02:17]} {[%emt 00:00:15]} Rb8 {[%clk 00:01:22]} {[%emt
00:00:01]} 32. b4 {[%clk 00:01:34]} {[%emt 00:00:54]} Bd7 {[%clk 00:01:24]}
{[%emt 00:00:08]} 33. Rad1 {[%clk 00:00:37]} {[%emt 00:01:06]} Rg8+ {[%clk
00:01:27]} {[%emt 00:00:07]} 34. Kh1 {[%clk 00:00:19]} {[%emt 00:00:28]} Bc6+
{[%clk 00:01:35]} {[%emt 00:00:01]} 0-1

[Event "SELL Games"]
[Site "Tartu, Estonia"]
[Date "2023.05.19"]
[Round "4.8"]
[White "Perminaite, Guoda"]
[Black "Vanagaite, Giedre"]
[Result "1-0"]
[TimeControl "15min + 10sec per move each"]
[BlackTitle "WFM"]
[WhiteFideId "12808784"]
[BlackFideId "12800546"]
[WhiteElo "1725"]
[BlackElo "1995"]

1. e4 {[%clk 00:15:19]} c5 {[%clk 00:15:19]} {[%emt 00:00:01]} 2. Nf3 {[%clk
00:15:28]} Nc6 {[%clk 00:15:28]} {[%emt 00:00:01]} 3. d4 {[%clk 00:15:37]} cxd4
{[%clk 00:15:32]} {[%emt 00:00:07]} 4. Nxd4 {[%clk 00:15:45]} {[%emt 00:00:01]}
Qb6 {[%clk 00:15:14]} {[%emt 00:00:28]} 5. Nb3 {[%clk 00:15:54]} {[%emt
00:00:02]} Nf6 {[%clk 00:15:22]} {[%emt 00:00:02]} 6. Nc3 {[%clk 00:16:02]}
{[%emt 00:00:01]} e6 {[%clk 00:15:30]} {[%emt 00:00:03]} 7. Be3 {[%clk
00:16:07]} {[%emt 00:00:04]} Qc7 {[%clk 00:15:38]} {[%emt 00:00:02]} 8. a3
{[%clk 00:16:16]} {[%emt 00:00:02]} a6 {[%clk 00:15:28]} {[%emt 00:00:20]} 9.
Bd3 {[%clk 00:16:23]} {[%emt 00:00:03]} b5 {[%clk 00:15:24]} {[%emt 00:00:14]}
10. f4 {[%clk 00:14:53]} {[%emt 00:01:40]} d6 {[%clk 00:15:31]} {[%emt
00:00:03]} 11. g4 {[%clk 00:14:39]} {[%emt 00:00:24]} Bb7 {[%clk 00:14:59]}
{[%emt 00:00:42]} 12. g5 {[%clk 00:14:20]} {[%emt 00:00:28]} Nd7 {[%clk
00:15:08]} {[%emt 00:00:02]} 13. h4 {[%clk 00:13:43]} {[%emt 00:00:47]} Rc8
{[%clk 00:13:16]} {[%emt 00:02:02]} 14. Qf3 {[%clk 00:12:07]} {[%emt 00:01:45]}
b4 {[%clk 00:12:26]} {[%emt 00:01:01]} 15. Ne2 {[%clk 00:11:10]} {[%emt
00:01:06]} bxa3 {[%clk 00:12:29]} {[%emt 00:00:08]} 16. bxa3 {[%clk 00:11:19]}
Na5 {[%clk 00:10:55]} {[%emt 00:01:43]} 17. O-O {[%clk 00:11:06]} {[%emt
00:00:22]} d5 {[%clk 00:09:38]} {[%emt 00:01:28]} 18. Nxa5 {[%clk 00:06:20]}
{[%emt 00:04:56]} Qxa5 {[%clk 00:09:47]} {[%emt 00:00:01]} 19. e5 {[%clk
00:05:46]} {[%emt 00:00:43]} Bc5 {[%clk 00:05:58]} {[%emt 00:03:59]} 20. Kh2
{[%clk 00:03:56]} {[%emt 00:02:00]} Bxe3 {[%clk 00:05:23]} {[%emt 00:00:46]} 21.
Qxe3 {[%clk 00:04:05]} O-O {[%clk 00:05:31]} {[%emt 00:00:02]} 22. Nd4 {[%clk
00:01:53]} {[%emt 00:02:21]} Nc5 {[%clk 00:05:29]} {[%emt 00:00:12]} 23. Be2
{[%clk 00:01:12]} {[%emt 00:00:52]} Ne4 {[%clk 00:05:29]} {[%emt 00:00:09]} 24.
Nb3 {[%clk 00:00:56]} {[%emt 00:00:25]} Qc3 {[%clk 00:03:01]} {[%emt 00:02:39]}
25. Bd3 {[%clk 00:00:50]} {[%emt 00:00:17]} Nc5 {[%clk 00:02:05]} {[%emt
00:01:06]} 26. Bxh7+ {[%clk 00:00:44]} {[%emt 00:00:15]} Kxh7 {[%clk 00:01:51]}
{[%emt 00:00:23]} 27. Qxc3 {[%clk 00:00:52]} {[%emt 00:00:03]} Ne4 {[%clk
00:01:39]} {[%emt 00:00:23]} 28. Qb2 {[%clk 00:00:22]} {[%emt 00:00:40]} Rc3
{[%clk 00:01:33]} {[%emt 00:00:15]} 29. Nd4 {[%clk 00:00:19]} {[%emt 00:00:14]}
Ba8 {[%emt 00:00:37]} 30. Rad1 {[%clk 00:00:18]} {[%emt 00:00:08]} Rfc8 {[%clk
00:00:57]} {[%emt 00:00:21]} 31. Rd3 {[%clk 00:00:27]} {[%emt 00:00:02]} R3c7
{[%clk 00:01:04]} {[%emt 00:00:04]} 32. Kg2 {[%clk 00:00:28]} {[%emt 00:00:08]}
Nc3 {[%clk 00:00:42]} {[%emt 00:00:32]} 33. f5 {[%clk 00:00:23]} {[%emt
00:00:15]} Nb5 {[%clk 00:00:51]} {[%emt 00:00:01]} 34. Rf2 {[%clk 00:00:26]}
{[%emt 00:00:07]} Rc4 {[%clk 00:00:37]} {[%emt 00:00:24]} 35. Nxb5 {[%clk
00:00:32]} {[%emt 00:00:04]} d4+ {[%clk 00:00:28]} {[%emt 00:00:20]} 36. Kg3
{[%clk 00:00:28]} {[%emt 00:00:14]} axb5 {[%clk 00:00:33]} {[%emt 00:00:05]} 37.
fxe6 {[%clk 00:00:25]} {[%emt 00:00:12]} fxe6 {[%clk 00:00:41]} {[%emt
00:00:02]} 38. Rxd4 {[%clk 00:00:28]} {[%emt 00:00:08]} Rc3+ {[%clk 00:00:45]}
{[%emt 00:00:06]} 39. Rd3 {[%clk 00:00:36]} {[%emt 00:00:01]} R3c5 {[%clk
00:00:37]} {[%emt 00:00:18]} 40. Re3 {[%clk 00:00:39]} {[%emt 00:00:07]} Bd5
{[%clk 00:00:34]} {[%emt 00:00:14]} 41. c3 {[%clk 00:00:46]} {[%emt 00:00:02]}
Bc4 {[%clk 00:00:27]} {[%emt 00:00:17]} 42. Qc2+ {[%clk 00:00:52]} {[%emt
00:00:04]} Kg8 {[%clk 00:00:36]} {[%emt 00:00:01]} 43. Qg6 {[%clk 00:00:57]}
{[%emt 00:00:04]} Ra8 {[%clk 00:00:36]} {[%emt 00:00:10]} 44. Rf7 {[%clk
00:01:02]} {[%emt 00:00:05]} 1-0

[Event "SELL Games"]
[Site "Tartu, Estonia"]
[Date "2023.05.19"]
[Round "5.1"]
[White "Vardanyan, Aras"]
[Black "Tvarijonas, Tomas"]
[Result "0-1"]
[TimeControl "15min + 10sec per move each"]
[WhiteTitle "FM"]
[BlackTitle "FM"]
[WhiteFideId "12808792"]
[BlackFideId "12805432"]
[WhiteElo "2255"]
[BlackElo "2181"]

1. d4 {[%clk 00:15:16]} {[%emt 00:00:04]} Nf6 {[%clk 00:15:13]} {[%emt
00:00:08]} 2. c4 {[%clk 00:15:25]} {[%emt 00:00:01]} e6 {[%clk 00:15:21]}
{[%emt 00:00:02]} 3. Nc3 {[%clk 00:15:32]} {[%emt 00:00:02]} d5 {[%clk
00:15:30]} {[%emt 00:00:02]} 4. cxd5 {[%clk 00:15:41]} {[%emt 00:00:02]} exd5
{[%clk 00:15:36]} {[%emt 00:00:04]} 5. Bg5 {[%clk 00:15:49]} Be7 {[%clk
00:15:30]} {[%emt 00:00:16]} 6. e3 {[%clk 00:15:58]} {[%emt 00:00:02]} O-O
{[%clk 00:15:32]} {[%emt 00:00:08]} 7. Bd3 {[%clk 00:16:06]} {[%emt 00:00:02]}
h6 {[%clk 00:15:36]} {[%emt 00:00:05]} 8. Bh4 {[%clk 00:16:14]} {[%emt
00:00:01]} c6 {[%clk 00:15:13]} {[%emt 00:00:34]} 9. Nge2 {[%clk 00:16:21]}
{[%emt 00:00:03]} Ne4 {[%clk 00:14:52]} {[%emt 00:00:31]} 10. Bxe7 {[%clk
00:16:23]} {[%emt 00:00:09]} Qxe7 {[%clk 00:15:00]} {[%emt 00:00:01]} 11. Bxe4
{[%clk 00:15:07]} {[%emt 00:01:25]} dxe4 {[%clk 00:15:09]} {[%emt 00:00:01]} 12.
Ng3 {[%clk 00:15:16]} {[%emt 00:00:01]} f5 {[%clk 00:14:45]} {[%emt 00:00:35]}
13. O-O {[%clk 00:15:21]} {[%emt 00:00:04]} Be6 {[%clk 00:14:34]} {[%emt
00:00:22]} 14. f3 {[%clk 00:14:58]} {[%emt 00:00:32]} Qg5 {[%clk 00:11:54]}
{[%emt 00:02:50]} 15. fxe4 {[%clk 00:14:23]} {[%emt 00:00:45]} Qxe3+ {[%clk
00:11:50]} {[%emt 00:00:14]} 16. Kh1 {[%clk 00:14:31]} {[%emt 00:00:01]} fxe4
{[%clk 00:10:55]} {[%emt 00:01:06]} 17. Rxf8+ {[%clk 00:14:28]} {[%emt
00:00:13]} Kxf8 {[%clk 00:11:04]} {[%emt 00:00:02]} 18. Qf1+ {[%clk 00:14:27]}
{[%emt 00:00:10]} Kg8 {[%clk 00:11:06]} {[%emt 00:00:08]} 19. Re1 {[%clk
00:14:35]} {[%emt 00:00:01]} Qxd4 {[%clk 00:10:48]} {[%emt 00:00:28]} 20. Rd1
{[%clk 00:11:22]} {[%emt 00:03:23]} Qf6 {[%clk 00:08:08]} {[%emt 00:02:51]} 21.
Qxf6 {[%clk 00:11:14]} {[%emt 00:00:18]} gxf6 {[%clk 00:08:16]} {[%emt
00:00:01]} 22. Rd8+ {[%clk 00:11:23]} {[%emt 00:00:01]} Kf7 {[%clk 00:08:16]}
{[%emt 00:00:11]} 23. Ngxe4 {[%clk 00:11:21]} {[%emt 00:00:11]} Ke7 {[%clk
00:06:48]} {[%emt 00:01:39]} 24. Rh8 {[%clk 00:11:27]} {[%emt 00:00:03]} b6
{[%clk 00:06:14]} {[%emt 00:00:45]} 25. h4 {[%clk 00:11:01]} {[%emt 00:00:35]}
f5 {[%clk 00:05:01]} {[%emt 00:01:24]} 26. Ng3 {[%clk 00:10:54]} {[%emt
00:00:16]} b5 {[%clk 00:05:08]} {[%emt 00:00:03]} 27. a3 {[%clk 00:10:58]}
{[%emt 00:00:07]} a5 {[%clk 00:05:14]} {[%emt 00:00:05]} 28. Kh2 {[%clk
00:11:06]} {[%emt 00:00:02]} Kd6 {[%clk 00:04:21]} {[%emt 00:01:02]} 29. h5
{[%clk 00:10:51]} {[%emt 00:00:25]} b4 {[%clk 00:03:44]} {[%emt 00:00:48]} 30.
Na4 {[%clk 00:10:53]} {[%emt 00:00:07]} c5 {[%clk 00:03:21]} {[%emt 00:00:33]}
31. Rxh6 {[%clk 00:10:15]} {[%emt 00:00:48]} Nd7 {[%clk 00:03:27]} {[%emt
00:00:05]} 32. Nxf5+ {[%clk 00:10:18]} {[%emt 00:00:07]} Ke5 {[%clk 00:03:35]}
{[%emt 00:00:01]} 33. Ng7 {[%clk 00:10:04]} {[%emt 00:00:23]} Bb3 {[%clk
00:03:16]} {[%emt 00:00:30]} 34. Nb6 {[%clk 00:10:08]} {[%emt 00:00:06]} Nxb6
{[%clk 00:03:23]} {[%emt 00:00:03]} 35. Rxb6 {[%clk 00:10:17]} {[%emt
00:00:02]} Bd5 {[%clk 00:03:06]} {[%emt 00:00:27]} 36. g4 {[%clk 00:10:04]}
{[%emt 00:00:22]} bxa3 {[%clk 00:03:14]} {[%emt 00:00:03]} 37. bxa3 {[%clk
00:10:13]} c4 {[%clk 00:02:52]} {[%emt 00:00:32]} 38. Nf5 {[%clk 00:10:18]}
{[%emt 00:00:04]} Kf4 {[%clk 00:02:48]} {[%emt 00:00:15]} 39. Rd6 {[%clk
00:09:15]} {[%emt 00:01:12]} Ke5 {[%clk 00:02:22]} {[%emt 00:00:36]} 40. Rb6
{[%clk 00:07:34]} {[%emt 00:01:51]} Kf4 {[%clk 00:02:15]} {[%emt 00:00:17]} 41.
Ne7 {[%clk 00:07:10]} {[%emt 00:00:35]} Be4 {[%clk 00:02:07]} {[%emt 00:00:18]}
42. Kh3 {[%clk 00:06:34]} {[%emt 00:00:45]} c3 {[%clk 00:02:06]} {[%emt
00:00:11]} 43. Rf6+ {[%clk 00:05:43]} {[%emt 00:01:01]} Ke3 {[%clk 00:02:11]}
{[%emt 00:00:06]} 44. Rf1 {[%clk 00:04:50]} {[%emt 00:01:02]} c2 {[%clk
00:01:57]} {[%emt 00:00:25]} 45. g5 {[%clk 00:03:41]} {[%emt 00:01:19]} Rd8
{[%clk 00:01:42]} {[%emt 00:00:24]} 46. Rc1 {[%clk 00:03:18]} {[%emt 00:00:34]}
Rd1 {[%clk 00:01:49]} {[%emt 00:00:03]} 47. Rxc2 {[%clk 00:03:26]} {[%emt
00:00:02]} Bxc2 {[%clk 00:01:58]} {[%emt 00:00:02]} 48. g6 {[%clk 00:03:35]}
{[%emt 00:00:01]} Kf3 {[%clk 00:01:45]} {[%emt 00:00:23]} 49. Kh2 {[%clk
00:03:31]} {[%emt 00:00:14]} Rd4 {[%clk 00:00:39]} {[%emt 00:01:15]} 50. Kh3
{[%clk 00:03:29]} {[%emt 00:00:12]} Rd1 {[%clk 00:00:48]} {[%emt 00:00:01]} 51.
Kh2 {[%clk 00:03:38]} {[%emt 00:00:01]} Rd4 {[%clk 00:00:55]} {[%emt 00:00:02]}
52. Kh3 {[%clk 00:03:47]} {[%emt 00:00:02]} Rd7 {[%clk 00:00:45]} {[%emt
00:00:20]} 53. g7 {[%clk 00:03:26]} {[%emt 00:00:32]} Bh7 {[%clk 00:00:33]}
{[%emt 00:00:21]} 54. g8=Q {[%clk 00:03:28]} {[%emt 00:00:09]} Bxg8 {[%clk
00:00:41]} {[%emt 00:00:01]} 55. Nxg8 {[%clk 00:03:36]} {[%emt 00:00:01]} Rd8
{[%clk 00:00:25]} {[%emt 00:00:27]} 56. Ne7 {[%clk 00:03:36]} {[%emt 00:00:10]}
Rd1 {[%clk 00:00:19]} {[%emt 00:00:16]} 57. Kh4 {[%clk 00:03:38]} {[%emt
00:00:09]} Kf4 {[%clk 00:00:24]} {[%emt 00:00:03]} 58. Ng6+ {[%clk 00:03:32]}
{[%emt 00:00:17]} Kf5 {[%clk 00:00:32]} {[%emt 00:00:02]} 59. Ne7+ {[%clk
00:03:41]} {[%emt 00:00:01]} Kf6 {[%clk 00:00:37]} {[%emt 00:00:05]} 60. Ng8+
{[%clk 00:03:47]} {[%emt 00:00:04]} Kg7 {[%clk 00:00:45]} {[%emt 00:00:03]} 61.
Ne7 {[%clk 00:03:55]} {[%emt 00:00:02]} Ra1 {[%clk 00:00:39]} {[%emt 00:00:15]}
62. Kg5 {[%clk 00:04:02]} {[%emt 00:00:04]} Rxa3 {[%clk 00:00:47]} {[%emt
00:00:03]} 63. Nf5+ {[%clk 00:04:10]} {[%emt 00:00:01]} Kh7 {[%clk 00:00:56]}
{[%emt 00:00:01]} 64. Kf4 {[%clk 00:04:16]} {[%emt 00:00:04]} Rh3 {[%clk
00:01:00]} {[%emt 00:00:05]} 65. Ke4 {[%clk 00:04:13]} {[%emt 00:00:13]} a4
{[%clk 00:01:09]} {[%emt 00:00:02]} 66. Kd4 {[%emt 00:00:13]} 0-1